bitfinex-derivatives/quotes_BNBF0:USTF0_20250413
["timestamp","ask_amount","ask_price","bid_price","bid_amount"]
[1744577294430,0.6271367,582.7,582.07,0.31546155]
[1744577294629,0.6271367,582.69,582.07,0.31546155]
[1744577294830,0.6271367,582.68,582.08,0.3154608]
[1744577295134,0.215,582.77,582.09,0.3154608]
[1744577295135,0.6271367,582.67,582.09,0.3154608]
[1744577295331,0.6271367,582.66,582.07,0.3154608]
[1744577295531,0.6271367,582.65,582.08,0.3154608]
[1744577295834,0.6271367,582.64,582.09,0.3154608]
[1744577296032,0.6271367,582.63,582.1,0.3154608]
[1744577296235,0.6271367,582.62,582.1,0.3154608]
[1744577296431,0.6271367,582.61,582.11,0.3154608]
[1744577296635,0.6271367,582.6,582.07,0.3154608]
[1744577296836,0.6269711,582.59,582.08,0.3154608]
[1744577297036,0.6269711,582.58,582.07,0.3154608]
[1744577297336,0.6269711,582.57,582.09,0.667]
[1744577297636,0.6269711,582.56,582.1,0.3154608]
[1744577297830,0.6269711,582.55,582.1,0.3154608]
[1744577298034,0.6269711,582.54,582.1,0.3154608]
[1744577298231,0.6269711,582.53,582.1,0.3154608]
[1744577298431,0.6269711,582.52,582.1,0.3154608]
[1744577298737,0.62709633,582.51,582.1,0.3154608]
[1744577298936,0.215,582.77,582.1,0.3154608]
[1744577299235,0.62709733,582.76,582.09,0.667]
[1744577299437,0.62709733,582.75,582.1,0.31549062]
[1744577299732,0.62709733,582.74,582.1,0.31549062]
[1744577299932,0.62709733,582.73,582.1,0.31549062]
[1744577300133,0.62709733,582.72,582.09,0.667]
[1744577300334,0.62709733,582.71,582.09,0.667]
[1744577300533,0.62709733,582.7,582.09,0.667]
[1744577300735,0.62709733,582.69,582.09,0.667]
[1744577300932,0.62709733,582.68,582.09,0.667]
[1744577301131,0.62709733,582.67,582.09,0.667]
[1744577301337,0.62709733,582.66,582.09,0.667]
[1744577301539,0.62709733,582.65,582.1,0.531]
[1744577301732,0.62709733,582.64,582.1,0.531]
[1744577301932,0.62709733,582.63,582.1,0.531]
[1744577302134,0.62709733,582.62,582.1,0.531]
[1744577302432,0.62709733,582.61,582.1,0.531]
[1744577302636,0.62709733,582.6,582.1,0.531]
[1744577302835,0.62709733,582.59,582.1,0.531]
[1744577303134,0.62713978,582.58,582.11,0.696]
[1744577303337,0.62713978,582.57,582.11,0.696]
[1744577303537,0.62713978,582.56,582.11,0.696]
[1744577303738,0.62713978,582.55,582.11,0.696]
[1744577303935,0.62713978,582.54,582.12,0.62]
[1744577304138,0.62713978,582.53,582.12,0.62]
[1744577304439,0.62713978,582.52,582.12,0.62]
[1744577304738,0.62713978,582.51,582.12,0.62]
[1744577305034,0.215,582.53,582.13,0.31548307]
[1744577318249,0.62637114,583.15,582.13,0.31548307]
[1744577318442,0.93752462,583.14,582.13,0.31548307]
[1744577318742,0.93752462,583.13,582.13,0.31548307]
[1744577318945,0.93752462,583.12,582.13,0.31548307]
[1744577319145,0.62637114,583.11,582.13,0.31548307]
[1744577319348,0.62637114,583.1,582.13,0.31548307]
[1744577319547,0.62637114,583.09,582.13,0.31548307]
[1744577319749,0.62637114,583.08,582.13,0.31548307]
[1744577319944,0.62637114,583.07,582.13,0.31548307]
[1744577320148,0.62637114,583.06,582.13,0.31548307]
[1744577320447,0.62637114,583.05,582.13,0.31548307]
[1744577320645,0.62637114,583.04,582.13,0.31548307]
[1744577320847,0.62637114,583.04,582.12,2.578]
[1744577320848,0.62637114,583.03,582.12,2.578]
[1744577321045,0.62637114,583.02,582.13,0.31542082]
[1744577321249,0.62637114,583.01,582.13,0.31542082]
[1744577321445,0.62637114,583.0,582.13,0.31542082]
[1744577321645,0.62596486,582.99,582.13,0.31542082]
[1744577321848,0.62596486,582.98,582.13,0.31542082]
[1744577322048,0.62596486,582.97,582.13,0.31542082]
[1744577322252,0.62596486,582.96,582.13,0.31542082]
[1744577322454,0.62596486,582.95,582.13,0.31542082]
[1744577322653,0.62596486,582.94,582.13,0.31542082]
[1744577322847,0.62596486,582.93,582.13,0.31542082]
[1744577323049,0.62596486,582.92,582.13,0.31542082]
[1744577323249,0.62596486,582.91,582.13,0.31542082]
[1744577323455,0.62596486,582.9,582.13,0.31542082]
[1744577323655,0.62596486,582.89,582.13,0.31542082]
[1744577323849,0.62596486,582.88,582.13,0.31542082]
[1744577324054,0.62596486,582.87,582.14,0.31541313]
[1744577324355,0.62596486,582.86,582.15,0.31541313]
[1744577324549,0.62596486,582.85,582.13,0.31541313]
[1744577324749,0.62596486,582.84,582.14,0.31541313]
[1744577324951,0.62596486,582.83,582.15,0.31541313]
[1744577325154,0.215,583.0,582.12,2.578]
[1744577325155,0.62596486,582.82,582.16,0.31541313]
[1744577325452,0.62596486,582.81,582.17,0.31541313]
[1744577325650,0.62596486,582.8,582.13,0.31541313]
[1744577325856,0.62596486,582.79,582.12,2.578]
[1744577326056,0.215,583.0,582.12,2.578]
[1744577326257,0.62596215,582.99,582.12,2.578]
[1744577326457,0.62596215,582.98,582.12,2.578]
[1744577326757,0.62596215,582.97,582.12,2.578]
[1744577326955,0.215,583.0,582.13,0.31529362]
[1744577327154,0.62588452,582.99,582.13,0.31529362]
[1744577327358,0.62588452,582.98,582.13,0.31529362]
[1744577327555,0.62588452,582.97,582.13,0.31529362]
[1744577327759,0.62588452,582.96,582.13,0.31529362]
[1744577327960,0.62588452,582.95,582.13,0.31529362]
[1744577328159,0.62588452,582.94,582.13,0.31529362]
[1744577328361,0.62588452,582.93,582.13,0.31529362]
[1744577328658,0.62588452,582.92,582.12,1.181]
[1744577328859,0.62588452,582.91,582.12,1.181]
[1744577329059,0.62588452,582.9,582.12,1.181]
[1744577329361,0.62588452,582.89,582.13,0.31534514]
[1744577329563,0.62588452,582.88,582.14,0.31536387]
[1744577329760,0.62588452,582.87,582.15,0.31536387]
[1744577329959,0.62588452,582.86,582.13,0.31536387]
[1744577330160,0.62588452,582.85,582.12,1.181]
[1744577330361,0.62588452,582.84,582.14,0.897]
[1744577330561,0.62588452,582.83,582.15,0.31538212]
[1744577330762,0.215,583.0,582.15,0.31538212]
[1744577330763,0.62588452,582.82,582.15,0.96038212]
[1744577331059,0.62588452,582.81,582.16,0.31538212]
[1744577331262,0.62588452,582.8,582.16,0.31538212]
[1744577331463,0.62588452,582.79,582.16,0.31538212]
[1744577331763,0.62588452,582.78,582.17,0.31538306]
[1744577331961,0.62588452,582.77,582.18,0.31538306]
[1744577332159,0.62588452,582.76,582.18,0.31538306]
[1744577332463,0.215,583.0,582.19,0.31538306]
[1744577332665,0.62572047,582.99,582.16,0.31538306]
[1744577332964,0.62572047,582.98,582.17,0.31538306]
[1744577333161,0.62572047,582.97,582.15,0.645]
[1744577333460,0.62572047,582.96,582.16,0.65888966]
[1744577333668,0.62572047,582.95,582.17,0.65888376]
[1744577333863,0.62572047,582.94,582.18,0.65887786]
[1744577334067,0.62572047,582.93,582.19,0.65887196]
[1744577334267,0.62572047,582.92,582.2,0.65886606]
[1744577334467,0.62572047,582.91,582.21,0.65886016]
[1744577334670,0.62572047,582.9,582.22,0.65885426]
[1744577334864,0.62572047,582.89,582.23,0.3153415]
[1744577335067,0.62572047,582.88,582.23,0.3153415]
[1744577335264,0.62572047,582.87,582.23,0.3153415]
[1744577335464,0.62572047,582.86,582.23,0.3153415]
[1744577335668,0.62572047,582.85,582.23,0.3153415]
[1744577335971,0.62572047,582.84,582.23,0.3153415]
[1744577336272,0.62572047,582.83,582.23,0.3153415]
[1744577336567,0.62572047,582.82,582.24,0.84633856]
[1744577336764,0.62572047,582.81,582.25,0.31533856]
[1744577336967,0.215,583.0,582.25,0.95933856]
[1744577337163,0.62536711,582.99,582.26,0.31533856]
[1744577337366,0.62536711,582.98,582.26,0.31533856]
[1744577337567,0.62536427,582.97,582.26,0.31533856]
[1744577337765,0.62536427,582.96,582.26,0.31533856]
[1744577337967,0.62536427,582.95,582.27,0.31534467]
[1744577338169,0.62536427,582.94,582.26,0.31534467]
[1744577338365,0.62536427,582.93,582.26,0.31534467]
[1744577338566,0.62536427,582.92,582.26,0.31534467]
[1744577338765,0.62536427,582.91,582.26,0.31534467]
[1744577338965,0.62536427,582.9,582.27,0.666]
[1744577339165,0.62536427,582.89,582.28,0.31534467]
[1744577339368,0.62536427,582.88,582.28,0.31534467]
[1744577339566,0.62536427,582.87,582.29,0.31537314]
[1744577339767,0.62536427,582.86,582.27,0.666]
[1744577339966,0.62536427,582.85,582.28,0.31537299]
[1744577340165,0.62536427,582.84,582.28,0.31537299]
[1744577340468,0.62536427,582.83,582.28,0.31537299]
[1744577340771,0.62536427,582.82,582.28,0.31537299]
[1744577340970,0.62536427,582.81,582.28,0.31537299]
[1744577341165,0.62536427,582.8,582.28,0.31537299]
[1744577341369,0.62536427,582.79,582.28,0.31537299]
[1744577341569,0.62536427,582.78,582.28,0.31537299]
[1744577341767,0.62536427,582.77,582.28,0.31537299]
[1744577342073,0.62536427,582.76,582.27,0.666]
[1744577342268,0.62536427,582.75,582.27,0.666]
[1744577342468,0.62536427,582.74,582.27,0.666]
[1744577342667,0.62536427,582.73,582.27,0.666]
[1744577342973,0.62536427,582.72,582.27,0.666]
[1744577343166,0.62536427,582.71,582.27,0.666]
[1744577343469,0.62536427,582.7,582.27,0.666]
[1744577343668,0.215,583.0,582.27,0.666]
[1744577343868,0.62560387,582.99,582.27,0.666]
[1744577344069,0.62560387,582.98,582.27,0.666]
[1744577344371,0.62560387,582.97,582.27,0.666]
[1744577344670,0.62560387,582.96,582.27,0.666]
[1744577344870,0.62560387,582.95,582.27,0.666]
[1744577345168,0.62560387,582.94,582.27,0.666]
[1744577345368,0.62560387,582.93,582.27,0.666]
[1744577345568,0.62560387,582.92,582.27,0.666]
[1744577345771,0.62560387,582.91,582.28,0.3154003]
[1744577345970,0.62560387,582.9,582.28,0.3154003]
[1744577346169,0.62560387,582.89,582.28,0.3154003]
[1744577346369,0.62560387,582.88,582.28,0.3154003]
[1744577346570,0.62560387,582.87,582.28,0.3154003]
[1744577346774,0.62560387,582.86,582.28,0.3154003]
[1744577346969,0.62560387,582.85,582.29,0.31539615]
[1744577347175,0.62560387,582.84,582.28,0.31539615]
[1744577347376,0.62560387,582.83,582.28,0.31539615]
[1744577347571,0.62560387,582.82,582.28,0.31539615]
[1744577347776,0.62560387,582.81,582.28,0.31539615]
[1744577347977,0.62560387,582.8,582.28,0.31539615]
[1744577348271,0.62560387,582.79,582.28,0.31539615]
[1744577348578,0.84060387,582.78,582.27,0.666]
[1744577348780,0.62560387,582.77,582.28,0.31542299]
[1744577348980,0.62560387,582.76,582.28,0.31542299]
[1744577349174,0.62560387,582.75,582.28,0.31542299]
[1744577349378,0.62560387,582.74,582.28,0.31542299]
[1744577349578,0.62560387,582.73,582.28,0.31542299]
[1744577349775,0.62560387,582.72,582.28,0.31542299]
[1744577349974,0.215,582.78,582.28,0.31542299]
[1744577349975,0.62560387,582.71,582.28,0.31542299]
[1744577350175,0.62560387,582.7,582.28,0.31542299]
[1744577350378,0.62560387,582.69,582.28,0.31542299]
[1744577350581,0.62560387,582.68,582.28,0.31542299]
[1744577350782,0.62560387,582.67,582.28,0.88542299]
[1744577350979,0.62560387,582.66,582.28,0.57]
[1744577351180,0.62560387,582.65,582.28,0.57]
[1744577351383,0.62560387,582.64,582.28,0.57]
[1744577351584,0.62560387,582.63,582.28,0.57]
[1744577351883,0.62560387,582.62,582.28,0.57]
[1744577352178,0.61763243,582.61,582.28,0.57]
[1744577352382,0.215,582.78,582.28,0.57]
[1744577357993,0.215,582.78,582.28,1.124]
[1744577358185,0.215,582.78,582.29,0.31537683]
[1744577359087,0.215,582.78,582.29,0.86637683]
[1744577359391,0.215,582.78,582.3,0.31537683]
[1744577359687,1.30708766,583.85,582.3,0.31537683]
[1744577359991,0.34259481,583.78,582.3,0.31537683]
[1744577360185,0.31096962,583.77,582.3,0.31537683]
[1744577360389,0.34261241,583.75,582.3,0.31537683]
[1744577360592,0.31096962,583.74,582.3,0.31537683]
[1744577360791,0.34263002,583.72,582.3,0.31537683]
[1744577361090,0.31096962,583.71,582.3,0.31537683]
[1744577361385,0.34264763,583.69,582.3,0.31537683]
[1744577361589,0.31096962,583.68,582.3,0.31537683]
[1744577361790,0.34266525,583.66,582.3,0.31537683]
[1744577361984,0.31096962,583.65,582.3,0.31537683]
[1744577362185,0.34268286,583.63,582.3,0.31537683]
[1744577362385,0.31096962,583.62,582.3,1.00537683]
[1744577362589,0.31096962,583.62,582.31,0.31537683]
[1744577363086,0.34270047,583.6,582.31,0.31537683]
[1744577363286,0.31096962,583.59,582.31,0.31537683]
[1744577363484,0.34271222,583.58,582.31,0.31537683]
[1744577363684,0.31096962,583.57,582.31,0.31537683]
[1744577363889,0.34272397,583.56,582.31,0.31537683]
[1744577364089,0.93710862,583.55,582.31,0.31537683]
[1744577364290,0.96887471,583.54,582.31,0.31537683]
[1744577364493,1.2798502,583.53,582.31,0.31537683]
[1744577364691,1.27985608,583.52,582.31,0.31537683]
[1744577364988,1.27986195,583.51,582.31,0.31537683]
[1744577365193,1.27986783,583.5,582.31,0.31537683]
[1744577365392,1.2798737,583.49,582.31,0.31537683]
[1744577365594,1.27993705,583.48,582.32,0.31531936]
[1744577365794,1.27994292,583.47,582.31,0.31531936]
[1744577366095,1.2799488,583.46,582.32,0.31531936]
[1744577366290,0.96892758,583.45,582.31,0.31531936]
[1744577366496,1.27996055,583.44,582.31,0.31531936]
[1744577366690,1.27996642,583.43,582.31,0.31531936]
[1744577366893,0.93716609,583.42,582.31,0.31531936]
[1744577367094,0.626139,583.41,582.3,0.69]
[1744577367294,0.93707852,583.4,582.31,0.31532011]
[1744577367597,0.93707852,583.39,582.31,0.31532011]
[1744577367795,0.93707852,583.38,582.31,0.31532011]
[1744577368000,0.93707852,583.37,582.31,0.31532011]
[1744577368201,0.93707852,583.36,582.31,0.31532011]
[1744577368399,0.93707852,583.35,582.31,0.31532011]
[1744577368601,0.93707852,583.34,582.31,0.31532011]
[1744577368901,0.93707852,583.33,582.31,0.31532011]
[1744577369099,0.93707852,583.32,582.31,0.31532011]
[1744577369297,0.93707852,583.31,582.31,0.31532011]
[1744577369498,0.93707852,583.3,582.31,0.31532011]
[1744577369699,0.93707852,583.29,582.31,0.31532011]
[1744577369901,0.93707852,583.28,582.31,0.31532011]
[1744577370102,0.626139,583.27,582.31,0.31532011]
[1744577370302,0.626139,583.26,582.32,0.31533217]
[1744577370501,0.626139,583.25,582.31,0.31533217]
[1744577370702,0.626139,583.24,582.32,0.31533217]
[1744577370903,0.626139,583.23,582.31,0.31533217]
[1744577371202,0.626139,583.22,582.32,0.31533217]
[1744577371402,0.626139,583.21,582.31,0.31533217]
[1744577371601,0.626139,583.2,582.32,0.31533217]
[1744577371801,0.626139,583.19,582.33,0.31533217]
[1744577372001,0.626139,583.18,582.34,0.31533217]
[1744577372297,0.626139,583.17,582.35,0.31533217]
[1744577372501,0.626139,583.16,582.31,0.31533217]
[1744577372701,0.626139,583.15,582.32,0.31533217]
[1744577372897,0.626139,583.14,582.33,0.31533217]
[1744577373098,0.626139,583.13,582.31,0.31533217]
[1744577373296,0.626139,583.12,582.3,0.69]
[1744577373499,0.626139,583.11,582.31,0.31533068]
[1744577373697,0.626139,583.1,582.31,0.31533068]
[1744577373995,0.626139,583.09,582.31,0.31533068]
[1744577374198,0.626139,583.08,582.31,1.06333068]
[1744577374400,0.626139,583.07,582.32,0.31533068]
[1744577374597,0.626139,583.06,582.32,0.31533068]
[1744577374803,0.626139,583.05,582.32,0.31533068]
[1744577375001,0.626139,583.04,582.33,0.31533026]
[1744577375202,0.626139,583.03,582.32,0.31533026]
[1744577375402,0.626139,583.02,582.34,0.642]
[1744577375603,0.626139,583.01,582.35,0.31533026]
[1744577375803,0.626139,583.0,582.35,0.31533026]
[1744577376003,0.626139,582.99,582.35,0.31533026]
[1744577376205,0.62610868,582.98,582.35,0.31533026]
[1744577376406,0.62610868,582.97,582.35,0.31533026]
[1744577376606,0.62610868,582.96,582.35,0.31533026]
[1744577376805,0.62610868,582.95,582.35,0.31533026]
[1744577377004,0.62610868,582.94,582.35,0.31533026]
[1744577377200,0.62610868,582.93,582.35,0.31533026]
[1744577377406,0.62610868,582.92,582.35,0.31533026]
[1744577377605,0.62610868,582.91,582.35,0.31533026]
[1744577377801,0.62610868,582.9,582.36,0.72]
[1744577378000,0.62610868,582.89,582.36,0.72]
[1744577378204,0.62610868,582.88,582.37,0.31532983]
[1744577378405,0.62610868,582.87,582.37,0.31532983]
[1744577378605,0.62610868,582.86,582.37,0.31532983]
[1744577378804,0.62610868,582.85,582.37,0.31532983]
[1744577379002,0.62610868,582.84,582.37,0.31532983]
[1744577379201,0.62610868,582.83,582.37,0.31532983]
[1744577379405,0.62610868,582.82,582.37,0.31532983]
[1744577379607,0.62610868,582.81,582.38,0.31532095]
[1744577379801,0.62610868,582.8,582.39,0.31532095]
[1744577380004,0.62610868,582.79,582.4,0.31532095]
[1744577380201,0.62610868,582.78,582.41,0.31532095]
[1744577380402,0.62610868,582.77,582.37,0.31532095]
[1744577380602,0.34280033,583.43,582.38,0.31532095]
[1744577380806,0.93743837,583.42,582.39,0.31532095]
[1744577381002,0.93743837,583.41,582.37,0.31532095]
[1744577381204,0.93743837,583.4,582.38,0.31532095]
[1744577381404,0.93743837,583.39,582.39,0.31532095]
[1744577381603,0.93743837,583.38,582.4,0.31532095]
[1744577381803,0.93743837,583.37,582.41,0.31532095]
[1744577382008,0.93743837,583.36,582.42,0.31532095]
[1744577382204,0.93743837,583.35,582.43,0.31532095]
[1744577382406,0.93743837,583.34,582.44,0.31532095]
[1744577382610,0.93743837,583.33,582.37,0.31532095]
[1744577382812,0.93743837,583.32,582.45,0.548]
[1744577383012,0.93743837,583.31,582.45,0.548]
[1744577383210,0.93743837,583.3,582.45,0.548]
[1744577383514,0.93743837,583.29,582.46,0.31533132]
[1744577383813,0.93743837,583.28,582.46,0.31533132]
[1744577384013,0.93743837,583.27,582.46,0.31533132]
[1744577384214,0.93743837,583.26,582.46,0.31533132]
[1744577384415,0.34280033,583.43,582.46,0.31533132]
[1744577384416,0.93743837,583.25,582.46,0.31533132]
[1744577384616,0.93743837,583.24,582.46,0.31533132]
[1744577384817,0.93743837,583.23,582.46,0.31533132]
[1744577385017,0.93743837,583.22,582.46,0.31533132]
[1744577385211,0.62661293,583.21,582.46,0.31533132]
[1744577385417,0.62661293,583.2,582.46,0.31533132]
[1744577385617,0.62661293,583.19,582.46,0.31533132]
[1744577385814,0.62661293,583.18,582.46,0.31533132]
[1744577386018,0.62661293,583.17,582.46,0.31533132]
[1744577386218,0.62661293,583.16,582.46,0.31533132]
[1744577386415,0.62661293,583.15,582.46,0.31533132]
[1744577386619,0.62661293,583.14,582.46,0.31533132]
[1744577386820,0.62661293,583.13,582.46,0.31533132]
[1744577387017,0.62664055,583.12,582.46,0.31533132]
[1744577387220,0.62664055,583.11,582.46,0.31533132]
[1744577387521,0.62664055,583.1,582.47,0.31532612]
[1744577387817,0.62664055,583.09,582.45,0.548]
[1744577388122,0.62664055,583.08,582.46,0.31532636]
[1744577388321,0.62664055,583.07,582.46,0.31532636]
[1744577388519,0.62664055,583.06,582.46,0.31532636]
[1744577388718,0.62664055,583.05,582.46,0.31532636]
[1744577389022,0.62664055,583.04,582.46,0.31532636]
[1744577389220,0.62664055,583.03,582.46,0.31532636]
[1744577389424,0.62664055,583.02,582.46,0.31532636]
[1744577389622,0.62664055,583.01,582.46,0.31532636]
[1744577389824,0.62664055,583.0,582.47,0.652]
[1744577390025,0.62664055,582.99,582.47,0.652]
[1744577390225,0.62664055,582.98,582.47,0.652]
[1744577390428,0.62664055,582.97,582.47,0.652]
[1744577390625,0.62664055,582.96,582.47,0.652]
[1744577390921,0.62664055,582.95,582.47,0.652]
[1744577391125,0.62664055,582.94,582.47,0.652]
[1744577391421,0.62664055,582.93,582.47,0.652]
[1744577391622,0.62664055,582.92,582.47,0.652]
[1744577391825,0.62664055,582.91,582.47,0.652]
[1744577392025,0.215,582.95,582.47,0.652]
[1744577392026,0.62664055,582.9,582.47,0.652]
[1744577392226,0.62664055,582.89,582.47,0.652]
[1744577392428,0.62664055,582.88,582.47,0.652]
[1744577392727,0.62664055,582.87,582.47,0.652]
[1744577392926,0.62664055,582.86,582.47,0.652]
[1744577393226,0.62664055,582.85,582.47,0.652]
[1744577393427,0.62664055,582.84,582.47,0.652]
[1744577393727,0.62664055,582.83,582.47,0.652]
[1744577393923,0.62664055,582.82,582.47,0.652]
[1744577394129,0.62664055,582.81,582.47,0.652]
[1744577394424,0.62664055,582.8,582.47,0.652]
[1744577394623,0.62664055,582.79,582.47,0.652]
[1744577394827,0.62664055,582.78,582.47,0.652]
[1744577395127,0.62664055,582.77,582.47,0.652]
[1744577395323,0.62664055,582.76,582.47,0.652]
[1744577395525,0.62664055,582.75,582.47,0.652]
[1744577395722,0.62664055,582.74,582.47,0.652]
[1744577395927,0.62686427,582.73,582.47,0.652]
[1744577396128,0.215,582.95,582.47,0.652]
[1744577396424,0.62682216,582.94,582.47,0.652]
[1744577396627,0.62682216,582.93,582.47,0.652]
[1744577396828,0.62682216,582.92,582.47,0.652]
[1744577397022,0.62682216,582.91,582.47,0.652]
[1744577397227,0.62682216,582.9,582.47,0.652]
[1744577397525,0.62682216,582.89,582.48,0.743]
[1744577397728,0.62682216,582.88,582.48,0.743]
[1744577397926,0.62682216,582.87,582.48,0.743]
[1744577398129,0.62682216,582.86,582.48,0.743]
[1744577398326,0.62682216,582.85,582.48,0.743]
[1744577398525,0.62682216,582.84,582.48,0.743]
[1744577398728,0.62682216,582.83,582.48,0.743]
[1744577398928,0.62682216,582.82,582.48,0.743]
[1744577399229,0.62682216,582.81,582.48,0.743]
[1744577399425,0.62682216,582.8,582.48,0.743]
[1744577399629,0.62682216,582.79,582.48,0.743]
[1744577399826,0.62682216,582.78,582.48,0.743]
[1744577400027,0.62682216,582.77,582.48,0.743]
[1744577400226,0.62682216,582.76,582.48,0.743]
[1744577400427,0.62682216,582.75,582.48,0.743]
[1744577400728,0.62682216,582.74,582.48,0.743]
[1744577400928,0.215,582.95,582.48,0.743]
[1744577401132,0.62684216,582.94,582.48,0.743]
[1744577401328,0.62684216,582.93,582.48,0.743]
[1744577401533,0.62684216,582.92,582.48,0.743]
[1744577401831,0.62684216,582.91,582.48,0.743]
[1744577402033,0.62684216,582.9,582.48,0.743]
[1744577402232,0.62684216,582.89,582.48,0.743]
[1744577402429,0.62684216,582.88,582.48,0.743]
[1744577402633,0.62684216,582.87,582.48,0.743]
[1744577402928,0.62684216,582.86,582.48,0.743]
[1744577403235,0.62684216,582.85,582.48,0.743]
[1744577403428,0.62684216,582.84,582.48,0.743]
[1744577403628,0.62684216,582.83,582.48,0.743]
[1744577403830,0.62684216,582.82,582.48,0.743]
[1744577404129,0.62684216,582.81,582.48,0.743]
[1744577404334,0.62684216,582.8,582.48,0.743]
[1744577404535,0.62684216,582.79,582.48,0.743]
[1744577404835,0.215,582.95,582.48,0.743]
[1744577405028,0.62705233,582.94,582.48,0.743]
[1744577405231,0.62705233,582.93,582.48,0.743]
[1744577405429,0.62705233,582.92,582.48,0.743]
[1744577405633,0.62705233,582.91,582.48,0.743]
[1744577405831,0.62705233,582.9,582.48,0.743]
[1744577406031,0.62705233,582.89,582.48,0.743]
[1744577406233,0.62705233,582.88,582.48,0.743]
[1744577406431,0.62705233,582.87,582.48,0.743]
[1744577406632,0.62705233,582.86,582.48,0.743]
[1744577406932,0.62705233,582.85,582.48,0.743]
[1744577407236,0.62705233,582.84,582.48,0.743]
[1744577407436,0.62705233,582.83,582.48,0.743]
[1744577407732,0.62705233,582.82,582.48,0.743]
[1744577407931,0.62705233,582.81,582.48,0.743]
[1744577408138,0.62705233,582.8,582.48,0.743]
[1744577408336,0.62705233,582.79,582.48,0.743]
[1744577408537,0.62705233,582.78,582.48,0.743]
[1744577408734,0.62705233,582.77,582.48,0.743]
[1744577408930,0.62705233,582.76,582.48,0.743]
[1744577409235,0.62705233,582.75,582.48,0.743]
[1744577409436,0.62705233,582.74,582.48,0.743]
[1744577409631,0.62705233,582.73,582.48,0.743]
[1744577409836,0.215,582.95,582.48,0.743]
[1744577409837,0.62705233,582.72,582.48,0.743]
[1744577410132,0.62705233,582.71,582.48,0.743]
[1744577410337,0.62705233,582.7,582.48,0.743]
[1744577410533,0.215,582.95,582.48,0.743]
[1744577410737,0.62750648,582.94,582.48,0.743]
[1744577410937,0.62750648,582.93,582.48,0.743]
[1744577411137,0.62750648,582.92,582.48,0.743]
[1744577411436,0.62750648,582.91,582.48,0.743]
[1744577411634,0.62750648,582.9,582.48,0.743]
[1744577411837,0.62750648,582.89,582.48,0.743]
[1744577412039,0.62750648,582.88,582.48,0.743]
[1744577412233,0.62750648,582.87,582.48,0.743]
[1744577412433,0.62750648,582.86,582.48,0.743]
[1744577412635,0.62750648,582.85,582.48,0.743]
[1744577412834,0.62750648,582.84,582.48,0.743]
[1744577413138,0.62750648,582.83,582.48,0.743]
[1744577413335,0.62750648,582.82,582.48,0.743]
[1744577413639,0.62750648,582.81,582.48,0.743]
[1744577413839,0.62750648,582.8,582.48,0.743]
[1744577414138,0.62750648,582.79,582.48,0.743]
[1744577414339,0.62750648,582.78,582.49,0.31530897]
[1744577414638,0.62750648,582.77,582.49,0.31530897]
[1744577414839,0.62750648,582.76,582.49,0.31530897]
[1744577415040,0.34280033,583.43,582.49,0.31530897]
[1744577415338,0.93912496,583.42,582.49,0.31530897]
[1744577415540,0.93912496,583.41,582.49,0.31530897]
[1744577415839,1.15412496,583.4,582.49,0.31530897]
[1744577416039,0.93912496,583.39,582.49,0.31530897]
[1744577416339,0.215,583.4,582.49,0.31530897]
[1744577416340,0.93912496,583.38,582.5,0.599]
[1744577416542,0.62794488,583.37,582.5,0.599]
[1744577416741,0.93917462,583.36,582.51,0.31527693]
[1744577416935,0.93917462,583.35,582.51,0.31527693]
[1744577417139,0.93917462,583.34,582.51,0.31527693]
[1744577417335,0.93917462,583.33,582.51,0.31527693]
[1744577417537,0.93917462,583.32,582.51,0.31527693]
[1744577417737,0.93917462,583.31,582.51,0.31527693]
[1744577417936,0.62794488,583.3,582.51,0.31527693]
[1744577418137,0.62794488,583.29,582.5,0.599]
[1744577418340,0.62794488,583.28,582.51,0.31527911]
[1744577418536,0.62794488,583.27,582.51,0.31527911]
[1744577418839,0.62794488,583.26,582.51,0.31527911]
[1744577419037,0.62794488,583.25,582.51,0.31527911]
[1744577419342,0.62794488,583.24,582.51,0.31527911]
[1744577419640,0.62794488,583.23,582.51,0.31527911]
[1744577419938,0.62794488,583.22,582.51,0.31527911]
[1744577420141,0.62794488,583.21,582.51,0.31527911]
[1744577420338,0.62794488,583.2,582.51,0.31527911]
[1744577420538,0.62794488,583.19,582.51,0.31527911]
[1744577420741,0.62794488,583.18,582.51,0.31527911]
[1744577420939,0.62794488,583.17,582.51,0.31527911]